[Event "*** SCC Grand Prix: Titled Tuesday Blitz"]
[Site "Chess.com"]
[Date "2020.07.07"]
[Round "7"]
[White "RoelandPruijssers"]
[Black "GAusal"]
[Result "0-1"]
[WhiteElo "2591"]
[BlackElo "2089"]
[TimeControl "180+1"]
[EndTime "11:18:54 PDT"]
[Termination "GAusal won on time"]

1. f4 {[%clk 0:02:58.4]} 1... e5 {[%clk 0:02:58.8]} 2. fxe5 {[%clk 0:02:57]}
2... d6 {[%clk 0:02:58.2]} 3. exd6 {[%clk 0:02:52.1]} 3... Bxd6 {[%clk
0:02:57.2]} 4. Nf3 {[%clk 0:02:52.7]} 4... Bg4 {[%clk 0:02:51.1]} 5. e4 {[%clk
0:02:30]} 5... Nf6 {[%clk 0:02:45.3]} 6. Nc3 {[%clk 0:02:13.8]} 6... Nc6 {[%clk
0:02:44.6]} 7. Bb5 {[%clk 0:02:10.4]} 7... O-O {[%clk 0:02:40.1]} 8. Bxc6 {[%clk
0:02:06.1]} 8... bxc6 {[%clk 0:02:40.3]} 9. O-O {[%clk 0:02:06.6]} 9... Be5
{[%clk 0:02:33.8]} 10. d3 {[%clk 0:01:58.6]} 10... Qd6 {[%clk 0:02:26.8]} 11. h3
{[%clk 0:01:56.4]} 11... Bxf3 {[%clk 0:02:21.7]} 12. Qxf3 {[%clk 0:01:45.2]}
12... Rab8 {[%clk 0:02:17.7]} 13. Kh1 {[%clk 0:01:08.5]} 13... a6 {[%clk
0:02:12.5]} 14. Qf5 {[%clk 0:00:42.6]} 14... g6 {[%clk 0:02:07.5]} 15. Qf3
{[%clk 0:00:42.4]} 15... Nh5 {[%clk 0:02:03.2]} 16. Ne2 {[%clk 0:00:40.2]} 16...
f5 {[%clk 0:01:58.2]} 17. Bh6 {[%clk 0:00:33.7]} 17... Rf6 {[%clk 0:01:45.9]}
18. d4 {[%clk 0:00:26]} 18... Bxd4 {[%clk 0:01:37.7]} 19. Rfd1 {[%clk
0:00:20.6]} 19... c5 {[%clk 0:01:33.2]} 20. c3 {[%clk 0:00:20.7]} 20... fxe4
{[%clk 0:01:28.3]} 21. Qxe4 {[%clk 0:00:20.4]} 21... Re6 {[%clk 0:01:20]} 22.
Qd3 {[%clk 0:00:15.5]} 22... Rxe2 {[%clk 0:01:13.2]} 23. cxd4 {[%clk 0:00:15.1]}
23... Rbxb2 {[%clk 0:01:02.5]} 24. Rd2 {[%clk 0:00:12.3]} 24... Rexd2 {[%clk
0:00:55.8]} 25. Bxd2 {[%clk 0:00:13.2]} 25... Qxd4 {[%clk 0:00:49.5]} 26. Qxd4
{[%clk 0:00:06.2]} 26... cxd4 {[%clk 0:00:49]} 27. Bc1 {[%clk 0:00:06.6]} 27...
Rc2 {[%clk 0:00:48.6]} 28. Ba3 {[%clk 0:00:02.8]} 28... c5 {[%clk 0:00:48.1]}
29. Rb1 {[%clk 0:00:03.2]} 29... c4 {[%clk 0:00:47.4]} 30. Rb7 {[%clk
0:00:02.4]} 30... Ng3+ {[%clk 0:00:40.3]} 31. Kh2 {[%clk 0:00:02.3]} 31... Nf5
{[%clk 0:00:35]} 0-1

[Event "*** SCC Grand Prix: Titled Tuesday Blitz"]
[Site "Chess.com"]
[Date "2020.07.07"]
[Round "7"]
[White "N00bM3ster"]
[Black "Jospem"]
[Result "0-1"]
[WhiteElo "2608"]
[BlackElo "2887"]
[TimeControl "180+1"]
[EndTime "11:18:56 PDT"]
[Termination "Jospem won by resignation"]

1. e4 {[%clk 0:02:53.4]} 1... e5 {[%clk 0:02:57.8]} 2. Nf3 {[%clk 0:02:52.3]}
2... Nc6 {[%clk 0:02:49.9]} 3. Bc4 {[%clk 0:02:50.6]} 3... Bc5 {[%clk
0:02:46.9]} 4. c3 {[%clk 0:02:47.8]} 4... Nf6 {[%clk 0:02:45.4]} 5. b4 {[%clk
0:02:47.6]} 5... Bb6 {[%clk 0:02:13.9]} 6. d3 {[%clk 0:02:45]} 6... d6 {[%clk
0:02:11.4]} 7. a4 {[%clk 0:02:42.2]} 7... a5 {[%clk 0:02:11.5]} 8. b5 {[%clk
0:02:41.3]} 8... Nb8 {[%clk 0:01:58.9]} 9. Nbd2 {[%clk 0:02:40.7]} 9... O-O
{[%clk 0:01:56.7]} 10. Bb3 {[%clk 0:02:39.6]} 10... c6 {[%clk 0:01:48]} 11. Nc4
{[%clk 0:02:37.6]} 11... Bc7 {[%clk 0:01:47.6]} 12. Be3 {[%clk 0:02:36.2]} 12...
Nbd7 {[%clk 0:01:35.5]} 13. O-O {[%clk 0:02:29.1]} 13... d5 {[%clk 0:01:23.6]}
14. Ncd2 {[%clk 0:02:28.6]} 14... Bb6 {[%clk 0:01:21.2]} 15. Bxb6 {[%clk
0:02:25.4]} 15... Qxb6 {[%clk 0:01:20]} 16. Qe2 {[%clk 0:02:23.3]} 16... Re8
{[%clk 0:01:16.4]} 17. Rab1 {[%clk 0:02:21.5]} 17... Qc7 {[%clk 0:01:14.1]} 18.
Rfe1 {[%clk 0:02:17.7]} 18... Nc5 {[%clk 0:01:00.6]} 19. Bc2 {[%clk 0:02:16.6]}
19... dxe4 {[%clk 0:00:59.9]} 20. Nxe4 {[%clk 0:02:16]} 20... Nfxe4 {[%clk
0:00:56.9]} 21. dxe4 {[%clk 0:02:16.9]} 21... cxb5 {[%clk 0:00:56]} 22. axb5
{[%clk 0:02:13.7]} 22... b6 {[%clk 0:00:52.4]} 23. Nd2 {[%clk 0:02:09.2]} 23...
Be6 {[%clk 0:00:51.4]} 24. Nc4 {[%clk 0:02:08.1]} 24... Nd7 {[%clk 0:00:39.3]}
25. Bb3 {[%clk 0:02:02.9]} 25... a4 {[%clk 0:00:38]} 26. Ba2 {[%clk 0:02:02.8]}
26... Rec8 {[%clk 0:00:37]} 27. Ne3 {[%clk 0:02:02]} 27... Bxa2 {[%clk
0:00:37.1]} 28. Qxa2 {[%clk 0:02:02.9]} 28... Qxc3 {[%clk 0:00:37.4]} 29. Nd5
{[%clk 0:02:02.5]} 29... Qc4 {[%clk 0:00:24.2]} 30. Qa3 {[%clk 0:01:52.8]} 30...
Qc5 {[%clk 0:00:21.7]} 31. Qh3 {[%clk 0:01:44]} 31... Qd6 {[%clk 0:00:15.6]} 32.
Rec1 {[%clk 0:01:41]} 32... Nc5 {[%clk 0:00:14]} 33. Qh4 {[%clk 0:01:34.4]}
33... f6 {[%clk 0:00:13.4]} 34. Qg4 {[%clk 0:01:24.6]} 34... Kh8 {[%clk
0:00:13.2]} 35. h4 {[%clk 0:01:24.2]} 35... Rf8 {[%clk 0:00:13.1]} 36. Ne3
{[%clk 0:01:20.5]} 36... Qe6 {[%clk 0:00:12.2]} 37. Nf5 {[%clk 0:01:17.1]} 37...
g6 {[%clk 0:00:11.6]} 38. Ne3 {[%clk 0:01:08.1]} 38... Qxg4 {[%clk 0:00:11.5]}
39. Nxg4 {[%clk 0:01:09]} 39... h5 {[%clk 0:00:11.6]} 40. Ne3 {[%clk 0:01:08.7]}
40... a3 {[%clk 0:00:12.2]} 41. Nd5 {[%clk 0:01:08.2]} 41... a2 {[%clk
0:00:11.4]} 42. Ra1 {[%clk 0:01:08]} 42... Nb3 {[%clk 0:00:11.2]} 43. Nxb6
{[%clk 0:01:05.8]} 43... Nxc1 {[%clk 0:00:10.8]} 44. Nxa8 {[%clk 0:01:05.2]}
44... Rxa8 {[%clk 0:00:11.7]} 45. Kf1 {[%clk 0:01:05]} 45... Nb3 {[%clk
0:00:11.7]} 46. b6 {[%clk 0:01:05.5]} 46... Nxa1 {[%clk 0:00:11.8]} 47. b7
{[%clk 0:01:06.4]} 47... Rb8 {[%clk 0:00:12.1]} 0-1

[Event "*** SCC Grand Prix: Titled Tuesday Blitz"]
[Site "Chess.com"]
[Date "2020.07.07"]
[Round "7"]
[White "floplover"]
[Black "MomchilPetkov"]
[Result "0-1"]
[WhiteElo "2313"]
[BlackElo "2546"]
[TimeControl "180+1"]
[EndTime "11:18:58 PDT"]
[Termination "MomchilPetkov won by resignation"]

1. d4 {[%clk 0:03:00.9]} 1... Nf6 {[%clk 0:02:58.1]} 2. c4 {[%clk 0:03:00.2]}
2... e6 {[%clk 0:02:58.6]} 3. Nc3 {[%clk 0:02:59.5]} 3... Bb4 {[%clk 0:02:59]}
4. Qc2 {[%clk 0:02:59.8]} 4... Nc6 {[%clk 0:02:58.1]} 5. Nf3 {[%clk 0:02:58.5]}
5... d6 {[%clk 0:02:58.1]} 6. Bd2 {[%clk 0:02:58.6]} 6... a5 {[%clk 0:02:56.8]}
7. g3 {[%clk 0:02:39.7]} 7... O-O {[%clk 0:02:54.9]} 8. Bg2 {[%clk 0:02:39.8]}
8... e5 {[%clk 0:02:53.9]} 9. d5 {[%clk 0:02:37.5]} 9... Nb8 {[%clk 0:02:49]}
10. O-O {[%clk 0:02:37.3]} 10... Nbd7 {[%clk 0:02:43.9]} 11. b3 {[%clk 0:02:16]}
11... Nc5 {[%clk 0:02:06.7]} 12. a3 {[%clk 0:02:07.5]} 12... Bxc3 {[%clk
0:02:06.9]} 13. Bxc3 {[%clk 0:02:08.3]} 13... a4 {[%clk 0:02:07.3]} 14. b4
{[%clk 0:02:07.9]} 14... Nb3 {[%clk 0:02:07.8]} 15. Rad1 {[%clk 0:01:58.7]}
15... Bd7 {[%clk 0:02:07]} 16. Nd2 {[%clk 0:01:47]} 16... Nxd2 {[%clk
0:01:38.3]} 17. Rxd2 {[%clk 0:01:47.9]} 17... Qc8 {[%clk 0:01:37.3]} 18. Rc1
{[%clk 0:01:42.5]} 18... Bh3 {[%clk 0:01:30.8]} 19. Bh1 {[%clk 0:01:39.8]} 19...
h5 {[%clk 0:01:13.3]} 20. Rdd1 {[%clk 0:01:31.5]} 20... h4 {[%clk 0:01:12.1]}
21. Bd2 {[%clk 0:01:28.7]} 21... hxg3 {[%clk 0:01:04.8]} 22. hxg3 {[%clk
0:01:29.6]} 22... Qg4 {[%clk 0:01:04.2]} 23. Bf3 {[%clk 0:01:28.4]} 23... Qd7
{[%clk 0:00:56]} 24. Bg5 {[%clk 0:01:23.7]} 24... Nh7 {[%clk 0:00:51.8]} 25. Bd2
{[%clk 0:01:14.9]} 25... f5 {[%clk 0:00:51.9]} 26. Kh2 {[%clk 0:01:13.6]} 26...
f4 {[%clk 0:00:49.9]} 27. Rh1 {[%clk 0:01:09.1]} 27... Bf5 {[%clk 0:00:49.5]}
28. Be4 {[%clk 0:01:03.5]} 28... Ng5 {[%clk 0:00:26.1]} 29. Bxf5 {[%clk
0:00:56.9]} 29... Rxf5 {[%clk 0:00:26.6]} 30. g4 {[%clk 0:00:48.2]} 30... Rf6
{[%clk 0:00:25.3]} 31. f3 {[%clk 0:00:45.1]} 31... e4 {[%clk 0:00:24.7]} 32. Kg2
{[%clk 0:00:43]} 32... Re8 {[%clk 0:00:23.8]} 33. Be1 {[%clk 0:00:40.9]} 33...
exf3+ {[%clk 0:00:17.4]} 34. exf3 {[%clk 0:00:40.6]} 34... Re3 {[%clk
0:00:18.3]} 35. Bh4 {[%clk 0:00:39.8]} 35... Rxf3 {[%clk 0:00:16]} 36. Bxg5
{[%clk 0:00:36.8]} 36... Qxg4+ {[%clk 0:00:15.8]} 0-1

[Event "*** SCC Grand Prix: Titled Tuesday Blitz"]
[Site "Chess.com"]
[Date "2020.07.07"]
[Round "7"]
[White "gliglu"]
[Black "Skatchkov_V"]
[Result "0-1"]
[WhiteElo "2398"]
[BlackElo "2538"]
[TimeControl "180+1"]
[EndTime "11:18:58 PDT"]
[Termination "Skatchkov_V won by resignation"]

1. d4 {[%clk 0:03:00.9]} 1... Nf6 {[%clk 0:02:57.1]} 2. c4 {[%clk 0:03:00.8]}
2... e6 {[%clk 0:02:57.7]} 3. Nc3 {[%clk 0:03:00.4]} 3... Bb4 {[%clk 0:02:58.2]}
4. e3 {[%clk 0:02:59.7]} 4... O-O {[%clk 0:02:57.7]} 5. Ne2 {[%clk 0:02:59.6]}
5... Re8 {[%clk 0:02:54.5]} 6. a3 {[%clk 0:02:59.4]} 6... Bf8 {[%clk 0:02:54.9]}
7. d5 {[%clk 0:02:59.2]} 7... a5 {[%clk 0:02:53]} 8. g3 {[%clk 0:02:59.1]} 8...
Na6 {[%clk 0:02:47]} 9. Bg2 {[%clk 0:02:58.8]} 9... Nc5 {[%clk 0:02:46]} 10. O-O
{[%clk 0:02:57.4]} 10... c6 {[%clk 0:02:46.5]} 11. e4 {[%clk 0:02:52.6]} 11...
exd5 {[%clk 0:02:41.7]} 12. exd5 {[%clk 0:02:52.2]} 12... Ra6 {[%clk 0:02:25.8]}
13. Nd4 {[%clk 0:02:46.4]} 13... cxd5 {[%clk 0:01:58.1]} 14. cxd5 {[%clk
0:02:44.7]} 14... d6 {[%clk 0:01:57.4]} 15. Qc2 {[%clk 0:02:28.7]} 15... g6
{[%clk 0:01:53.1]} 16. Bf4 {[%clk 0:02:26]} 16... Bg7 {[%clk 0:01:50.9]} 17.
Rad1 {[%clk 0:02:25.6]} 17... Rb6 {[%clk 0:01:46.4]} 18. Ndb5 {[%clk 0:02:11.2]}
18... Bf5 {[%clk 0:01:44.9]} 19. Qd2 {[%clk 0:01:18.3]} 19... Nb3 {[%clk
0:01:44.5]} 20. Qe3 {[%clk 0:01:18.4]} 20... Rxe3 {[%clk 0:01:43.6]} 21. Bxe3
{[%clk 0:01:18.3]} 21... Ra6 {[%clk 0:01:41.7]} 22. a4 {[%clk 0:01:14.8]} 22...
Nc5 {[%clk 0:01:40.3]} 23. h3 {[%clk 0:01:10.6]} 23... Bc2 {[%clk 0:01:34.1]}
24. Rd2 {[%clk 0:01:03.2]} 24... Bb3 {[%clk 0:01:30.7]} 25. Re1 {[%clk
0:00:55.9]} 25... Nxa4 {[%clk 0:01:30]} 26. Nxa4 {[%clk 0:00:47.6]} 26... Bxa4
{[%clk 0:01:29.1]} 27. Nc3 {[%clk 0:00:47.4]} 27... Bd7 {[%clk 0:01:27.4]} 28.
Bf4 {[%clk 0:00:45.9]} 28... b5 {[%clk 0:01:25]} 29. Bf1 {[%clk 0:00:44.9]}
29... Rb6 {[%clk 0:01:23.8]} 30. Be3 {[%clk 0:00:44.3]} 30... Rb8 {[%clk
0:01:20.4]} 31. Bf4 {[%clk 0:00:43.5]} 31... b4 {[%clk 0:01:19.1]} 32. Ne4
{[%clk 0:00:41.8]} 32... Nxe4 {[%clk 0:01:16.6]} 33. Rxe4 {[%clk 0:00:41.8]}
33... Bf5 {[%clk 0:01:16.7]} 34. Rc4 {[%clk 0:00:41.7]} 34... h5 {[%clk
0:01:10.8]} 35. Rc6 {[%clk 0:00:40.5]} 35... Be5 {[%clk 0:01:10.3]} 36. Bxe5
{[%clk 0:00:37.4]} 36... dxe5 {[%clk 0:01:11.2]} 37. d6 {[%clk 0:00:37.6]} 37...
a4 {[%clk 0:01:11.2]} 38. d7 {[%clk 0:00:36.6]} 38... a3 {[%clk 0:01:07.4]} 39.
bxa3 {[%clk 0:00:33.4]} 39... b3 {[%clk 0:01:07.5]} 40. g4 {[%clk 0:00:27.1]}
40... Bxd7 {[%clk 0:01:01.7]} 41. Bc4 {[%clk 0:00:19.9]} 41... Bxc6 {[%clk
0:00:59.9]} 0-1

[Event "*** SCC Grand Prix: Titled Tuesday Blitz"]
[Site "Chess.com"]
[Date "2020.07.07"]
[Round "7"]
[White "Grieve72"]
[Black "sergeikim"]
[Result "0-1"]
[WhiteElo "2237"]
[BlackElo "2407"]
[TimeControl "180+1"]
[EndTime "11:18:58 PDT"]
[Termination "sergeikim won on time"]

1. e4 {[%clk 0:02:59.7]} 1... e5 {[%clk 0:02:59.7]} 2. Nf3 {[%clk 0:02:59]} 2...
Nc6 {[%clk 0:02:59.7]} 3. Bc4 {[%clk 0:02:59.4]} 3... Bc5 {[%clk 0:02:58.6]} 4.
O-O {[%clk 0:02:59.2]} 4... Nf6 {[%clk 0:02:58.5]} 5. d3 {[%clk 0:02:59.3]} 5...
d6 {[%clk 0:02:58.1]} 6. a4 {[%clk 0:02:58.2]} 6... a6 {[%clk 0:02:58.1]} 7. c3
{[%clk 0:02:56]} 7... Ba7 {[%clk 0:02:57.7]} 8. a5 {[%clk 0:02:52.3]} 8... O-O
{[%clk 0:02:56.6]} 9. Bg5 {[%clk 0:02:52.3]} 9... Bg4 {[%clk 0:02:47.7]} 10. h3
{[%clk 0:02:43.7]} 10... Bh5 {[%clk 0:02:47.1]} 11. g4 {[%clk 0:02:39.7]} 11...
Bg6 {[%clk 0:02:46.4]} 12. Nbd2 {[%clk 0:02:37.7]} 12... Qe7 {[%clk 0:02:44.4]}
13. Nh4 {[%clk 0:02:19.1]} 13... Nd8 {[%clk 0:02:41.7]} 14. Nf5 {[%clk
0:02:03.4]} 14... Bxf5 {[%clk 0:02:41]} 15. gxf5 {[%clk 0:02:02.7]} 15... h6
{[%clk 0:02:39.2]} 16. Bh4 {[%clk 0:02:02.6]} 16... Kh8 {[%clk 0:02:32.7]} 17.
b4 {[%clk 0:01:17.9]} 17... g5 {[%clk 0:02:29.6]} 18. Bg3 {[%clk 0:01:18.1]}
18... Rg8 {[%clk 0:02:22]} 19. Kh1 {[%clk 0:01:09.7]} 19... c6 {[%clk
0:02:18.1]} 20. Bb3 {[%clk 0:01:07.9]} 20... d5 {[%clk 0:02:12.8]} 21. Qe2
{[%clk 0:01:03.2]} 21... Bb8 {[%clk 0:02:08.7]} 22. Bc2 {[%clk 0:00:52.6]} 22...
c5 {[%clk 0:01:57.1]} 23. Rfb1 {[%clk 0:00:21.2]} 23... cxb4 {[%clk 0:01:54.4]}
24. Rxb4 {[%clk 0:00:19.7]} 24... Nc6 {[%clk 0:01:54.2]} 25. Rb2 {[%clk
0:00:16.8]} 25... Bd6 {[%clk 0:01:51.7]} 26. Rab1 {[%clk 0:00:15.6]} 26... Rab8
{[%clk 0:01:49]} 27. Ra2 {[%clk 0:00:11.3]} 27... Bc7 {[%clk 0:01:34]} 28. Nb3
{[%clk 0:00:05.6]} 28... dxe4 {[%clk 0:01:29.4]} 29. dxe4 {[%clk 0:00:05.1]}
29... Rbd8 {[%clk 0:01:27]} 30. Qc4 {[%clk 0:00:03.4]} 30... Bd6 {[%clk
0:01:18.6]} 31. Nc1 {[%clk 0:00:01.2]} 31... Rc8 {[%clk 0:01:14.1]} 32. Ne2
{[%clk 0:00:01.5]} 32... Nd4 {[%clk 0:01:11.9]} 33. Qd3 {[%clk 0:00:01.8]} 33...
Nxe2 {[%clk 0:01:08.1]} 34. Qxe2 {[%clk 0:00:02.7]} 34... Rxc3 {[%clk 0:01:06]}
35. Rab2 {[%clk 0:00:03.3]} 35... Rc7 {[%clk 0:01:02.4]} 36. Bb3 {[%clk
0:00:02.3]} 36... Bc5 {[%clk 0:00:56.9]} 37. f3 {[%clk 0:00:01.7]} 37... Bd4
{[%clk 0:00:56.1]} 38. Ra2 {[%clk 0:00:01.2]} 38... Rgc8 {[%clk 0:00:55.1]} 0-1

[Event "*** SCC Grand Prix: Titled Tuesday Blitz"]
[Site "Chess.com"]
[Date "2020.07.07"]
[Round "7"]
[White "FedaMaster"]
[Black "BakaPG"]
[Result "0-1"]
[WhiteElo "2432"]
[BlackElo "2650"]
[TimeControl "180+1"]
[EndTime "11:19:00 PDT"]
[Termination "BakaPG won by resignation"]

1. e4 {[%clk 0:03:00.9]} 1... e6 {[%clk 0:02:58.6]} 2. d4 {[%clk 0:03:00.6]}
2... d5 {[%clk 0:02:58]} 3. exd5 {[%clk 0:03:00.7]} 3... exd5 {[%clk 0:02:57.6]}
4. Bd3 {[%clk 0:03:00.5]} 4... c5 {[%clk 0:02:56.4]} 5. Nf3 {[%clk 0:02:58.6]}
5... Nc6 {[%clk 0:02:55.9]} 6. c3 {[%clk 0:02:50.2]} 6... Nf6 {[%clk 0:02:53.7]}
7. O-O {[%clk 0:02:49.1]} 7... c4 {[%clk 0:02:54]} 8. Re1+ {[%clk 0:02:48.3]}
8... Be7 {[%clk 0:02:54.2]} 9. Be2 {[%clk 0:02:44.6]} 9... O-O {[%clk
0:02:53.5]} 10. b3 {[%clk 0:02:44.7]} 10... cxb3 {[%clk 0:02:52.7]} 11. axb3
{[%clk 0:02:45.6]} 11... Ne4 {[%clk 0:02:51.7]} 12. Bb2 {[%clk 0:02:44.6]} 12...
Bg4 {[%clk 0:02:48.3]} 13. Na3 {[%clk 0:02:42.1]} 13... Rc8 {[%clk 0:02:41.4]}
14. Nc2 {[%clk 0:02:42]} 14... Bf6 {[%clk 0:02:37.4]} 15. Ne3 {[%clk 0:02:41.5]}
15... Bh5 {[%clk 0:02:36.4]} 16. Nd2 {[%clk 0:02:37.2]} 16... Bg6 {[%clk
0:02:22.2]} 17. Nxe4 {[%clk 0:02:20.3]} 17... dxe4 {[%clk 0:02:21.2]} 18. d5
{[%clk 0:02:00.3]} 18... Ne5 {[%clk 0:02:15.1]} 19. Rxa7 {[%clk 0:01:59.4]}
19... Qb6 {[%clk 0:02:14.2]} 20. Ra4 {[%clk 0:01:59.4]} 20... Rfd8 {[%clk
0:02:09.4]} 21. Rb4 {[%clk 0:01:58.5]} 21... Qc7 {[%clk 0:02:06.3]} 22. Qd2
{[%clk 0:01:47.7]} 22... h5 {[%clk 0:02:01.8]} 23. h3 {[%clk 0:01:39.6]} 23...
Ra8 {[%clk 0:01:51.3]} 24. Ra1 {[%clk 0:01:26.1]} 24... Rxa1+ {[%clk 0:01:44.9]}
25. Bxa1 {[%clk 0:01:27]} 25... Nd3 {[%clk 0:01:44]} 26. Bxd3 {[%clk 0:01:19.7]}
26... exd3 {[%clk 0:01:43.9]} 27. Ra4 {[%clk 0:01:13.6]} 27... b5 {[%clk
0:01:39.1]} 28. Ra2 {[%clk 0:01:10.5]} 28... Rc8 {[%clk 0:01:28.7]} 29. c4
{[%clk 0:01:08.5]} 29... Bg5 {[%clk 0:01:24.7]} 30. cxb5 {[%clk 0:00:15.3]}
30... Bf4 {[%clk 0:01:15.8]} 31. g3 {[%clk 0:00:13]} 31... Be5 {[%clk
0:01:05.5]} 32. Bxe5 {[%clk 0:00:11.9]} 32... Qxe5 {[%clk 0:01:05.6]} 33. Kh2
{[%clk 0:00:12.1]} 33... h4 {[%clk 0:01:04.3]} 34. b6 {[%clk 0:00:10.9]} 34...
Rb8 {[%clk 0:00:57]} 35. Ra6 {[%clk 0:00:08.8]} 35... hxg3+ {[%clk 0:00:54.5]}
36. fxg3 {[%clk 0:00:09.7]} 36... Qd4 {[%clk 0:00:53.8]} 37. Ng4 {[%clk
0:00:06.5]} 37... Qxd5 {[%clk 0:00:49.3]} 38. Qf4 {[%clk 0:00:04.1]} 38... Re8
{[%clk 0:00:48.4]} 39. Qd2 {[%clk 0:00:03.7]} 39... Re2+ {[%clk 0:00:47.6]} 40.
Qxe2 {[%clk 0:00:02.7]} 40... dxe2 {[%clk 0:00:47.9]} 0-1

[Event "*** SCC Grand Prix: Titled Tuesday Blitz"]
[Site "Chess.com"]
[Date "2020.07.07"]
[Round "7"]
[White "Belka1989"]
[Black "Stormeman100100"]
[Result "0-1"]
[WhiteElo "2268"]
[BlackElo "2432"]
[TimeControl "180+1"]
[EndTime "11:19:00 PDT"]
[Termination "Stormeman100100 won on time"]

1. d4 {[%clk 0:03:00.9]} 1... Nf6 {[%clk 0:02:55.9]} 2. Nf3 {[%clk 0:03:01.5]}
2... g6 {[%clk 0:02:55.4]} 3. Bf4 {[%clk 0:03:02]} 3... Bg7 {[%clk 0:02:55.4]}
4. e3 {[%clk 0:03:02.8]} 4... O-O {[%clk 0:02:55.7]} 5. Be2 {[%clk 0:03:03.4]}
5... b6 {[%clk 0:02:53.5]} 6. O-O {[%clk 0:03:03.3]} 6... Bb7 {[%clk 0:02:53.6]}
7. c3 {[%clk 0:03:02.8]} 7... c5 {[%clk 0:02:51.9]} 8. h3 {[%clk 0:03:03.1]}
8... Nc6 {[%clk 0:02:40.6]} 9. Nbd2 {[%clk 0:03:03.2]} 9... d6 {[%clk
0:02:39.2]} 10. Re1 {[%clk 0:03:00.1]} 10... Re8 {[%clk 0:02:36.5]} 11. Bh2
{[%clk 0:03:00]} 11... Na5 {[%clk 0:02:24.1]} 12. Nc4 {[%clk 0:02:35.9]} 12...
Nxc4 {[%clk 0:02:22.4]} 13. Bxc4 {[%clk 0:02:36.8]} 13... Rc8 {[%clk 0:02:14.7]}
14. d5 {[%clk 0:02:22.7]} 14... Rc7 {[%clk 0:02:04.7]} 15. e4 {[%clk 0:02:20.4]}
15... Nd7 {[%clk 0:02:04.4]} 16. Bb5 {[%clk 0:02:01]} 16... Rf8 {[%clk
0:02:03.6]} 17. Bxd7 {[%clk 0:01:56.2]} 17... Rxd7 {[%clk 0:02:02.7]} 18. Qc2
{[%clk 0:01:44.3]} 18... b5 {[%clk 0:02:00.6]} 19. Rad1 {[%clk 0:01:35.6]} 19...
Qb6 {[%clk 0:01:57.4]} 20. b3 {[%clk 0:01:27.3]} 20... b4 {[%clk 0:01:49.5]} 21.
c4 {[%clk 0:01:20.8]} 21... a5 {[%clk 0:01:49.3]} 22. e5 {[%clk 0:01:17.8]}
22... Rdd8 {[%clk 0:01:45.7]} 23. Re2 {[%clk 0:01:10.9]} 23... Bc8 {[%clk
0:01:39.9]} 24. Rde1 {[%clk 0:01:05.5]} 24... Bf5 {[%clk 0:01:39.6]} 25. Qd2
{[%clk 0:01:02.3]} 25... a4 {[%clk 0:01:34.2]} 26. e6 {[%clk 0:00:53.7]} 26...
fxe6 {[%clk 0:01:32.3]} 27. g4 {[%clk 0:00:42]} 27... Bxg4 {[%clk 0:01:28.4]}
28. hxg4 {[%clk 0:00:41.2]} 28... Rxf3 {[%clk 0:01:26.9]} 29. Qg5 {[%clk
0:00:32.6]} 29... Bf6 {[%clk 0:01:22]} 30. Qh6 {[%clk 0:00:28.2]} 30... exd5
{[%clk 0:01:17.4]} 31. Rxe7 {[%clk 0:00:22.9]} 31... Bxe7 {[%clk 0:01:17.3]} 32.
Rxe7 {[%clk 0:00:23.8]} 32... Rf7 {[%clk 0:01:16.8]} 33. Rxf7 {[%clk 0:00:23.5]}
33... Kxf7 {[%clk 0:01:17.7]} 34. Qxh7+ {[%clk 0:00:24.1]} 34... Ke6 {[%clk
0:01:16.8]} 35. Qxg6+ {[%clk 0:00:13.2]} 35... Kd7 {[%clk 0:01:16.8]} 36. cxd5
{[%clk 0:00:13.1]} 36... axb3 {[%clk 0:01:14.7]} 37. axb3 {[%clk 0:00:13.6]}
37... c4 {[%clk 0:01:08.5]} 38. Qe6+ {[%clk 0:00:05]} 38... Kc7 {[%clk
0:01:08.1]} 39. bxc4 {[%clk 0:00:05]} 39... b3 {[%clk 0:01:06.7]} 40. Qe1 {[%clk
0:00:02.8]} 40... b2 {[%clk 0:01:05.9]} 41. Qb1 {[%clk 0:00:02.9]} 41... Ra8
{[%clk 0:01:05.2]} 42. Bxd6+ {[%clk 0:00:01.2]} 42... Kxd6 {[%clk 0:00:57.9]}
43. Qg6+ {[%clk 0:00:01.6]} 43... Kc5 {[%clk 0:00:57.3]} 0-1

[Event "*** SCC Grand Prix: Titled Tuesday Blitz"]
[Site "Chess.com"]
[Date "2020.07.07"]
[Round "7"]
[White "amintabatabaei"]
[Black "dretch"]
[Result "1-0"]
[WhiteElo "2936"]
[BlackElo "2796"]
[TimeControl "180+1"]
[EndTime "11:19:02 PDT"]
[Termination "amintabatabaei won on time"]

1. e4 {[%clk 0:03:00.9]} 1... e6 {[%clk 0:03:00.1]} 2. d4 {[%clk 0:02:59.2]}
2... d5 {[%clk 0:03:00.7]} 3. exd5 {[%clk 0:02:59.8]} 3... exd5 {[%clk
0:03:00.9]} 4. Nf3 {[%clk 0:03:00.5]} 4... Bd6 {[%clk 0:03:00]} 5. Bd3 {[%clk
0:03:01]} 5... Nc6 {[%clk 0:02:59.6]} 6. O-O {[%clk 0:02:59.3]} 6... Bg4 {[%clk
0:02:59.4]} 7. c3 {[%clk 0:02:56.7]} 7... Nge7 {[%clk 0:02:55.8]} 8. Re1 {[%clk
0:02:55.2]} 8... Qd7 {[%clk 0:02:55.4]} 9. Nbd2 {[%clk 0:02:54]} 9... f6 {[%clk
0:02:51.2]} 10. b4 {[%clk 0:02:50]} 10... O-O {[%clk 0:02:44.4]} 11. h3 {[%clk
0:02:45.1]} 11... Bf5 {[%clk 0:02:43.6]} 12. Bf1 {[%clk 0:02:45.4]} 12... Ng6
{[%clk 0:02:36.7]} 13. Nb3 {[%clk 0:02:45.6]} 13... Qf7 {[%clk 0:02:23.8]} 14.
a4 {[%clk 0:02:41.8]} 14... a5 {[%clk 0:02:18.6]} 15. b5 {[%clk 0:02:40.3]}
15... Nce7 {[%clk 0:02:14.9]} 16. Ra2 {[%clk 0:02:40.9]} 16... Nf4 {[%clk
0:02:04.8]} 17. Bxf4 {[%clk 0:02:33.3]} 17... Bxf4 {[%clk 0:02:04.4]} 18. Bd3
{[%clk 0:02:29]} 18... Bc8 {[%clk 0:02:01.4]} 19. Rae2 {[%clk 0:02:28]} 19...
Bd6 {[%clk 0:01:58.3]} 20. Qc2 {[%clk 0:02:26.8]} 20... g6 {[%clk 0:01:52]} 21.
Nc5 {[%clk 0:02:26.1]} 21... Kh8 {[%clk 0:01:46]} 22. c4 {[%clk 0:02:17.7]}
22... Nf5 {[%clk 0:01:03.3]} 23. Ne6 {[%clk 0:02:11.2]} 23... Bxe6 {[%clk
0:01:00.6]} 24. Rxe6 {[%clk 0:02:12.1]} 24... Ng7 {[%clk 0:01:00]} 25. R6e2
{[%clk 0:02:08.4]} 25... dxc4 {[%clk 0:00:53.1]} 26. Bxc4 {[%clk 0:02:09.3]}
26... Qd7 {[%clk 0:00:52.2]} 27. d5 {[%clk 0:01:50.9]} 27... Bb4 {[%clk
0:00:46.8]} 28. Rd1 {[%clk 0:01:48.5]} 28... Nf5 {[%clk 0:00:43.3]} 29. Bd3
{[%clk 0:01:38.2]} 29... Ne7 {[%clk 0:00:22.7]} 30. Be4 {[%clk 0:01:27.9]} 30...
Nc8 {[%clk 0:00:07.9]} 31. Nd4 {[%clk 0:01:27.6]} 31... Rf7 {[%clk 0:00:07.4]}
32. Ne6 {[%clk 0:01:27.9]} 32... Nb6 {[%clk 0:00:07.2]} 33. Bxg6 {[%clk
0:01:25.6]} 33... hxg6 {[%clk 0:00:06.9]} 34. Qxg6 {[%clk 0:01:26.5]} 34... Rg8
{[%clk 0:00:04.8]} 35. Qh6+ {[%clk 0:01:26.3]} 35... Rh7 {[%clk 0:00:05.4]} 36.
Qxf6+ {[%clk 0:01:26.6]} 36... Rgg7 {[%clk 0:00:05.7]} 37. Rd3 {[%clk
0:01:19.3]} 37... Kg8 {[%clk 0:00:05.4]} 38. d6 {[%clk 0:01:12.5]} 38... Bxd6
{[%clk 0:00:05.2]} 39. Nxc7 {[%clk 0:00:47.1]} 39... Rf7 {[%clk 0:00:02.2]} 40.
Re8+ {[%clk 0:00:45.5]} 1-0